bitfinex-derivatives/quotes_SOLF0:USTF0_20260208
["timestamp","ask_amount","ask_price","bid_price","bid_amount"]
[1770551104493,10.2355,88.007,87.935,16.53378585]
[1770551105007,10.2355,88.007,87.938,16.53378585]
[1770551105501,1.54369026,88.021,87.953,16.6179853]
[1770551105502,10.2342,88.018,87.953,16.6179853]
[1770551105809,1.39636118,88.037,87.953,16.6179853]
[1770551106005,10.2329,88.029,87.953,16.6179853]
[1770551107008,10.2315,88.041,87.966,16.61727607]
[1770551108197,10.2298,88.056,87.983,16.6745952]
[1770551108603,1.30614954,88.07,87.983,16.6745952]
[1770551108804,1.31562697,88.068,87.983,16.6745952]
[1770551109006,1.31562697,88.067,87.983,16.6745952]
[1770551109707,1.36313268,88.059,87.986,16.65552664]
[1770551110314,1.36313268,88.059,87.923,34.15]
[1770551110315,1.37334042,88.031,87.952,16.65505325]
[1770551111010,1.37334042,88.029,87.952,16.65505325]
[1770551111213,1.06531468,88.016,87.952,16.65505325]
[1770551111811,10.2327,88.031,87.952,16.65505325]
[1770551112010,1.07446927,88.036,87.952,16.65505325]
[1770551112407,1.08436232,88.049,87.956,16.80864433]
[1770551112812,1.08436232,88.049,87.976,16.80864433]
[1770551114109,1.08436232,88.049,87.985,17.15097361]
[1770551115108,1.08436232,88.049,87.914,179.8781]
[1770551115109,1.02665934,88.046,87.969,17.15097361]
[1770551116020,1.24088523,88.024,87.969,17.15097361]
[1770551116220,1.24088523,88.024,87.952,17.15097361]
[1770551116719,1.25025236,88.019,87.952,17.15097361]
[1770551117613,1.15000388,88.009,87.93,17.15097361]
[1770551118117,1.15078454,87.993,87.93,17.15097361]
[1770551118317,1.15913045,87.991,87.894,17.15097361]
[1770551118521,1.15913045,87.989,87.894,17.15097361]
[1770551120710,1.15913045,87.989,87.917,10.2458]
[1770551120914,1.15913045,87.989,87.918,17.15097361]
[1770551121111,10.2359,88.004,87.918,17.15097361]
[1770551122718,1.34566399,87.993,87.925,17.15097361]
[1770551123518,10.2399,87.969,87.907,17.15097361]
[1770551124424,10.2386,87.98,87.907,17.15097361]
[1770551125512,1.31295541,87.969,87.907,17.15097361]
[1770551125920,1.31295541,88.001,87.907,17.15097361]
[1770551126316,11.55879683,87.99,87.907,17.15097361]
[1770551126917,10.238,87.985,87.91,17.15097361]
[1770551128423,1.02514737,87.979,87.91,17.15097361]
[1770551129017,1.02514737,87.967,87.91,17.15097361]
[1770551129918,10.2411,87.959,87.91,17.15097361]
[1770551131918,10.2398,87.97,87.91,17.15097361]
[1770551133432,10.2386,87.98,87.91,17.15097361]
[1770551134330,1.15356226,87.974,87.893,17.15097361]
[1770551134531,1.15356226,87.972,87.893,17.15097361]
[1770551134724,1.15356226,87.97,87.893,17.15097361]
[1770551134924,1.15356226,87.968,87.893,17.15097361]
[1770551135121,1.15356226,87.966,87.893,17.15097361]
[1770551135727,10.2416,87.955,87.893,17.15097361]
[1770551136222,1.07991995,87.964,87.893,17.15097361]
[1770551137731,10.2426,87.946,87.893,17.15097361]
[1770551138731,0.73223296,87.983,87.893,17.15097361]
[1770551139534,0.73223296,87.983,87.847,432.34878117]
[1770551139535,0.73223296,87.983,87.906,17.02664763]
[1770551140226,1.04298913,87.972,87.906,17.02664763]
[1770551141238,10.2415,87.955,87.906,17.02664763]
[1770551143845,1.00762767,87.952,87.885,17.02664763]
[1770551144542,10.2428,87.944,87.885,17.02664763]
[1770551144743,1.01424588,87.982,87.885,17.02664763]
[1770551144941,10.2416,87.954,87.885,17.02664763]
[1770551145638,10.2428,87.944,87.885,17.02664763]
[1770551146835,10.2438,87.935,87.885,17.02664763]
[1770551149639,10.2424,87.947,87.885,17.02664763]
[1770551153139,1.11326983,87.967,87.885,17.02664763]
[1770551153540,1.11326983,87.967,87.901,10.2477]
[1770551153541,10.2402,87.966,87.901,10.2477]
[1770551153760,10.2402,87.966,87.902,17.02664763]
[1770551154245,10.2405,87.964,87.902,17.02664763]
[1770551155040,14.10206108,88.009,87.902,17.02664763]
[1770551155041,1.1242095,87.961,87.902,17.02664763]
[1770551160350,1.21414902,87.96,87.902,17.02664763]
[1770551160546,9.07120796,87.959,87.902,17.02664763]
[1770551160750,9.07120796,87.958,87.902,17.02664763]
[1770551160945,9.07120796,87.957,87.902,17.02664763]
[1770551161244,1.21414902,87.955,87.902,17.02664763]
[1770551161446,1.23259662,87.942,87.887,17.02664763]
[1770551161650,1.23259662,87.94,87.866,17.02664763]
[1770551161851,1.23259662,87.938,87.866,17.02664763]
[1770551162045,9.06523365,87.937,87.866,17.02664763]
[1770551162244,9.06523365,87.936,87.866,17.02664763]
[1770551162552,1.23259662,87.938,87.866,17.02664763]
[1770551162851,1.23259662,87.938,87.869,17.02664763]
[1770551163447,11.47609662,87.938,87.869,17.02664763]
[1770551163649,9.06889027,87.937,87.869,17.02664763]
[1770551163838,9.06889027,87.936,87.869,17.02664763]
[1770551164045,9.06889027,87.935,87.869,17.02664763]
[1770551164354,0.8225669,87.935,87.869,17.02664763]
[1770551164752,10.244,87.934,87.869,17.02664763]
[1770551165045,0.82777724,87.933,87.869,17.02664763]
[1770551165752,10.2445,87.93,87.869,17.02664763]
[1770551167148,10.2448,87.927,87.869,17.02664763]
[1770551167357,0.82777724,87.933,87.869,17.02664763]
[1770551167655,10.33512773,87.932,87.869,17.02664763]
[1770551167952,1.2605642,87.93,87.869,17.02664763]
[1770551168149,9.07456353,87.929,87.869,17.02664763]
[1770551168347,1.2605642,87.93,87.869,17.02664763]
[1770551168547,9.07395733,87.929,87.869,17.02664763]
[1770551168752,10.2458,87.918,87.869,17.02664763]
[1770551169754,20.4796,87.97,87.847,432.34878117]
[1770551169755,1.08121273,87.909,87.849,17.2077685]
[1770551171955,1.08121273,87.909,87.851,10.2535]
[1770551172161,1.08121273,87.909,87.852,17.2077685]
[1770551173950,10.2456,87.92,87.852,17.2077685]
[1770551174152,1.09123577,87.923,87.852,17.2077685]
[1770551174354,1.09095145,87.939,87.852,17.2077685]
[1770551174551,1.09517331,87.937,87.852,17.2077685]
[1770551174758,1.09517331,87.935,87.852,17.2077685]
[1770551175558,1.12554012,87.933,87.863,17.09588478]
[1770551175765,1.12554012,87.931,87.863,17.09588478]
[1770551175963,1.12554012,87.929,87.863,17.09588478]
[1770551176164,1.12554012,87.927,87.863,17.09588478]
[1770551176467,1.12587489,87.925,87.863,17.09588478]
[1770551176662,1.13000032,87.923,87.863,17.09588478]
[1770551176870,10.2473,87.906,87.863,17.09588478]
[1770551179469,10.2477,87.902,87.863,17.09588478]
[1770551179871,1.15470749,87.905,87.863,17.09588478]
[1770551183581,10.2458,87.918,87.863,17.09588478]
[1770551185482,10.2444,87.93,87.863,17.09588478]
[1770551186181,10.2454,87.922,87.863,17.09588478]
[1770551188484,1.97962916,87.95,87.875,17.09588478]
[1770551189779,1.97962916,87.95,87.84,27.29237084]
[1770551189780,1.97962916,87.95,87.89,17.09588478]
[1770551190887,1.97962916,87.95,87.81,11.37]
[1770551190888,1.48788374,87.98,87.892,17.09588478]
[1770551191085,3.4675129,87.994,87.892,17.09588478]
[1770551192687,10.2373,87.991,87.926,10.2448]
[1770551192886,3.88841067,88.008,87.927,17.09588478]
[1770551194681,10.2357,88.005,87.94,17.09588478]
[1770551195776,10.55272802,88.052,87.94,17.09588478]
[1770551195777,3.62217846,87.997,87.94,17.09588478]
[1770551196989,159.1374,88.052,87.94,17.09588478]
[1770551196990,3.64045703,87.991,87.94,17.09588478]
[1770551197689,10.2376,87.989,87.94,17.09588478]
[1770551197890,3.56325037,87.988,87.94,17.09588478]
[1770551199286,3.50283284,87.984,87.916,17.54243838]
[1770551200788,3.51684163,87.981,87.916,17.54243838]
[1770551203893,3.73250749,87.979,87.916,17.54243838]
[1770551206598,10.2384,87.982,87.92,10.2455]
[1770551206894,10.2384,87.982,87.921,17.54243838]
[1770551209398,3.72908549,87.996,87.924,10.245]
[1770551209604,3.76589145,88.009,87.925,17.54243838]
[1770551210902,10.2355,88.007,87.94,17.54243838]
[1770551211797,10.2355,88.007,87.942,17.54243838]
[1770551213107,3.86969725,88.004,87.942,17.54243838]
[1770551213903,3.86528125,87.995,87.942,17.54243838]
[1770551220509,3.9724518,87.991,87.942,17.54243838]
[1770551221597,3.95494915,88.031,87.942,17.54243838]
[1770551222209,3.95587052,88.013,87.942,17.54243838]
[1770551223103,3.96586473,88.008,87.942,17.54243838]
[1770551224702,10.2361,88.002,87.942,17.54243838]
[1770551224903,3.88837723,88.001,87.942,17.54243838]
[1770551226710,3.85749924,87.999,87.942,17.54243838]
[1770551227810,3.90736586,87.996,87.942,17.54243838]
[1770551228811,3.91740181,87.993,87.942,17.54243838]
[1770551230410,10.2386,87.98,87.942,17.54243838]
[1770551230713,3.91348682,87.991,87.942,17.54243838]
[1770551231803,14.37097293,87.989,87.942,17.54243838]
[1770551232406,4.13347293,87.989,87.942,17.54243838]
[1770551232606,10.2365,87.998,87.942,17.54243838]
[1770551232806,4.1431023,88.003,87.942,17.54243838]
[1770551233009,4.1431023,88.001,87.942,17.54243838]
[1770551233410,13.02030987,88.0,87.942,17.54243838]
[1770551233614,4.11908325,87.998,87.942,17.54243838]
[1770551233808,4.11908325,87.995,87.942,17.54243838]
[1770551234814,4.13210856,88.008,87.942,17.54243838]
[1770551235112,8.94472687,88.007,87.942,17.54243838]
[1770551235310,10.55272802,88.034,87.952,16.98330927]
[1770551235507,8.94561946,88.033,87.952,16.98330927]
[1770551235707,3.96249508,88.038,87.952,16.98330927]
[1770551235708,8.94561946,88.032,87.952,16.98330927]
[1770551236017,8.94561946,88.031,87.972,16.98330927]
[1770551236211,3.96249508,88.038,87.972,16.98330927]
[1770551236413,8.93805765,88.037,87.972,16.98330927]
[1770551236713,3.96249508,88.038,87.972,16.98330927]
[1770551236914,10.2324,88.033,87.972,16.98330927]
[1770551237310,3.96249508,88.038,87.972,16.98330927]
[1770551237807,10.2322,88.035,87.974,16.98330927]
[1770551239216,10.2322,88.035,87.977,16.98330927]
[1770551240608,10.2309,88.046,87.979,16.98330927]
[1770551240810,4.55074728,88.051,87.979,16.98330927]
[1770551241815,4.31754723,88.067,87.985,16.98330927]
[1770551243710,4.31754723,88.067,88.01,16.98330927]
[1770551245411,10.2279,88.072,88.01,16.98330927]
[1770551245916,10.2279,88.072,88.014,16.98330927]
[1770551246105,4.46930923,88.071,88.014,16.98330927]
[1770551246307,4.46930923,88.068,88.0,16.98330927]
[1770551247817,10.2305,88.05,88.0,16.98330927]
[1770551250719,4.20577249,88.046,88.0,16.98330927]
[1770551251714,10.2315,88.041,88.0,16.98330927]
[1770551251914,4.42482132,88.04,88.0,16.98330927]
[1770551252714,10.2321,88.036,88.0,16.98330927]
[1770551253319,4.42482132,88.04,88.0,16.98330927]
[1770551254920,4.08427154,88.055,88.0,16.98330927]
[1770551255513,14.30038285,88.069,88.004,16.98330927]
[1770551255815,8.89539537,88.096,88.004,16.98330927]
[1770551255816,4.07218285,88.082,88.004,16.98330927]
[1770551256413,4.07218285,88.082,88.025,17.81970292]
[1770551257619,4.43566888,88.074,88.025,17.81970292]
[1770551258215,10.2261,88.087,88.025,17.81970292]
[1770551258422,4.43628958,88.088,88.025,17.81970292]
[1770551259729,4.29086078,88.087,88.025,17.81970292]
[1770551261217,4.29765431,88.081,88.025,17.81970292]
[1770551262721,4.28820552,88.079,88.025,17.81970292]
[1770551264624,10.2256,88.092,88.025,17.81970292]
[1770551264931,4.34941044,88.094,88.025,17.81970292]
[1770551265723,4.34941044,88.094,88.038,17.81970292]
[1770551272837,4.69981035,88.094,88.041,17.81970292]
[1770551273735,10.2255,88.093,88.041,17.81970292]
[1770551276338,14.8671383,88.106,88.041,17.81970292]
[1770551277337,14.8671383,88.106,88.042,10.2313]
[1770551277533,10.2249,88.098,88.043,17.81970292]
[1770551279044,10.226,88.089,88.043,17.81970292]
[1770551280944,10.2249,88.098,88.045,17.81970292]
[1770551281147,4.67392558,88.115,88.045,17.81970292]
[1770551281449,4.58736626,88.113,88.045,17.81970292]
[1770551281642,4.59224234,88.111,88.045,17.81970292]
[1770551281844,4.59224234,88.109,88.045,17.81970292]
[1770551282042,10.2248,88.099,88.045,17.81970292]
[1770551282442,4.5975341,88.089,88.045,17.81970292]
[1770551283447,4.61767351,88.103,88.045,17.81970292]
[1770551284947,4.62284638,88.117,88.045,17.81970292]
[1770551285151,4.62284638,88.116,88.045,17.81970292]
[1770551285849,4.52934244,88.113,88.055,17.81970292]
[1770551286850,4.52934244,88.113,88.057,16.87601913]
[1770551287750,4.52934244,88.113,88.059,16.87601913]
[1770551288847,4.88766797,88.111,88.059,16.87601913]
[1770551289048,4.88766797,88.109,88.059,16.87601913]
[1770551289753,10.2253,88.095,88.03,16.87601913]
[1770551290761,10.2253,88.095,88.035,16.87601913]
[1770551290948,15.01350347,88.095,88.035,16.87601913]
[1770551291764,8.89553137,88.123,88.035,16.87601913]
[1770551291765,10.226,88.089,88.035,16.87601913]
[1770551291964,14.66780439,88.089,88.035,16.87601913]
[1770551292262,4.44180439,88.087,87.969,16.87601913]
[1770551292569,10.2278,88.073,88.008,16.87601913]
[1770551294466,10.2288,88.065,88.008,16.87601913]
[1770551297272,10.2275,88.076,88.012,17.19147798]
[1770551297568,4.51649351,88.089,88.012,17.19147798]
[1770551298165,4.52045403,88.087,88.012,17.19147798]
[1770551298770,10.2284,88.068,88.012,17.19147798]
[1770551299366,10.2273,88.077,88.019,17.19147798]
[1770551300661,10.2273,88.077,88.022,17.19147798]
[1770551301771,10.2273,88.077,88.024,17.19147798]
[1770551301967,14.82407205,88.116,88.024,17.19147798]
[1770551302173,14.82407205,88.136,88.024,17.19147798]
[1770551302370,14.82442757,88.134,88.024,17.19147798]
[1770551302571,14.82816581,88.132,88.067,17.19147798]
[1770551302876,14.82816581,88.13,88.067,17.19147798]
[1770551303178,14.82816581,88.143,88.069,17.19147798]
[1770551303373,8.920672,88.142,88.069,17.19147798]
[1770551303575,10.2185,88.153,88.092,10.2254]
[1770551303775,10.2185,88.153,88.093,17.19147798]
[1770551304471,15.57753635,88.157,88.034,159.1687]
[1770551304472,15.57753635,88.157,88.098,17.19147798]
[1770551306376,15.23075326,88.151,88.098,17.19147798]
[1770551306773,15.23432268,88.147,88.098,17.19147798]
[1770551308471,10.2179,88.158,88.098,17.19147798]
[1770551308678,15.10228219,88.157,88.098,17.19147798]
[1770551310275,15.41882908,88.154,88.098,17.19147798]
[1770551310876,15.41882908,88.154,87.988,35.792055]
[1770551310877,15.51888778,88.142,88.061,17.19147798]
[1770551311267,15.51888778,88.142,87.963,35.792055]
[1770551311268,15.65015821,88.096,88.045,17.19147798]
[1770551312067,15.73979244,88.09,88.03,17.19147798]
[1770551314081,15.44623223,88.077,88.03,17.19147798]
[1770551315774,15.74075738,88.094,88.03,17.19147798]
[1770551315978,15.74075738,88.109,88.03,17.19147798]
[1770551316776,15.74075738,88.109,88.045,17.29831764]
[1770551317576,15.74075738,88.109,88.047,17.29831764]
[1770551317778,16.23114176,88.14,88.047,17.29831764]
[1770551318187,305.81499359,88.153,88.047,17.29831764]
[1770551318382,16.32039099,88.152,88.047,17.29831764]
[1770551318883,10.2194,88.146,88.086,17.29831764]
[1770551319486,16.32039099,88.152,88.089,17.29831764]
[1770551319682,16.46330122,88.171,88.089,17.29831764]
[1770551320184,16.46330122,88.167,88.107,17.29831764]
[1770551320681,16.5496817,88.149,88.071,17.29831764]
[1770551321687,16.61440327,88.129,87.995,17.29831764]
[1770551322487,16.61440327,88.107,88.033,17.29831764]
[1770551323089,16.61440327,88.107,88.035,17.29831764]
[1770551324690,16.61440327,88.104,88.043,17.29831764]
[1770551326685,16.61440327,88.104,88.045,17.29831764]
[1770551328691,16.61440327,88.123,88.045,17.29831764]
[1770551328879,16.61440327,88.123,88.048,17.29831764]
[1770551330688,16.61440327,88.109,88.048,17.29831764]
[1770551332997,16.61440327,88.109,88.049,17.29831764]
[1770551333600,16.61440327,88.107,88.049,17.29831764]
[1770551335594,16.61440327,88.107,87.98,20.4771]
[1770551335595,16.61440327,88.098,87.971,17.29831764]
[1770551336499,16.61440327,88.072,88.007,17.29831764]
[1770551337104,16.61440327,88.068,88.007,17.29831764]
[1770551338403,16.61440327,88.052,87.983,17.29831764]
[1770551338904,16.61440327,88.05,87.983,17.29831764]
[1770551340802,16.61440327,88.05,87.933,159.3521]
[1770551340803,16.61440327,88.05,87.985,17.29831764]
[1770551341411,16.61440327,88.045,87.975,17.29831764]
[1770551342002,16.61440327,88.045,87.954,17.29831764]
[1770551342402,16.61440327,88.045,87.971,17.29831764]
[1770551343402,16.61440327,88.095,87.979,17.29831764]
[1770551344707,16.61440327,88.077,87.996,17.29831764]
[1770551345404,16.61440327,88.077,88.015,17.29831764]
[1770551345597,16.61440327,88.125,88.015,17.29831764]
[1770551346312,19.21731957,88.115,88.035,17.84179535]
[1770551347709,19.21731957,88.115,88.055,10.2298]
[1770551348010,19.21731957,88.115,88.056,17.84179535]
[1770551348605,19.21731957,88.115,88.059,17.84179535]
[1770551352914,19.21731957,88.115,88.043,17.84179535]
[1770551353809,19.59118827,88.102,88.028,17.87813058]
[1770551354815,19.59118827,88.082,88.028,17.87813058]
[1770551355221,19.59118827,88.082,88.01,17.87813058]
[1770551356925,19.59118827,88.078,88.01,17.87813058]
[1770551358925,19.59118827,88.078,88.013,17.87813058]
[1770551359425,14.07087559,88.129,87.972,11.37]
[1770551359426,19.59118827,88.094,88.026,17.87813058]
[1770551360627,19.59118827,88.082,88.009,17.87813058]
[1770551361817,10.2275,88.076,88.009,17.87813058]
[1770551362022,19.59118827,88.075,88.009,17.87813058]
[1770551362728,19.59118827,88.072,88.009,17.87813058]
[1770551364729,19.59118827,88.072,88.012,17.87813058]
[1770551365926,19.59118827,88.066,88.012,17.87813058]
[1770551366724,19.59118827,88.064,88.012,17.87813058]
[1770551367232,19.59118827,88.06,88.012,17.87813058]
[1770551369929,19.59118827,88.055,87.972,17.87813058]
[1770551370428,10.52562169,88.077,87.972,17.87813058]
[1770551370429,19.59118827,88.029,87.972,17.87813058]
[1770551371830,10.2345,88.015,87.972,17.87813058]
[1770551372423,19.59118827,88.029,87.972,17.87813058]
[1770551374647,19.59118827,88.029,87.973,10.2393]
[1770551374839,19.59118827,88.029,87.972,17.87813058]
[1770551375238,19.59118827,88.029,87.975,17.87813058]
[1770551375633,19.59118827,88.044,87.975,17.87813058]
[1770551377741,19.78930603,88.042,87.975,17.87813058]
[1770551379450,19.78930603,88.042,87.977,18.32891842]
[1770551380653,19.78930603,88.042,87.981,10.2384]
[1770551380851,19.78930603,88.042,87.982,18.32891842]
[1770551381752,19.78930603,88.042,87.985,18.32891842]
[1770551384555,19.78930603,88.042,87.987,18.32891842]
[1770551385856,19.78930603,88.042,87.938,11.37]
[1770551385857,19.78930603,88.042,87.99,18.32891842]
[1770551388948,19.78930603,88.042,87.98,18.32891842]
[1770551389366,10.2315,88.041,87.98,18.32891842]
[1770551389557,19.78930603,88.04,87.98,18.32891842]
[1770551390861,19.78930603,88.037,87.98,18.32891842]
[1770551392265,19.78930603,88.035,87.98,18.32891842]
[1770551393964,19.78930603,88.032,87.98,18.32891842]
[1770551394763,19.78930603,88.03,87.98,18.32891842]
[1770551398866,19.78930603,88.026,87.964,18.32891842]
[1770551399262,19.78930603,88.015,87.92,18.32891842]
[1770551399459,19.78930603,88.015,87.948,18.32891842]
[1770551399960,19.78930603,88.015,87.95,18.32891842]
[1770551401069,19.78930603,88.015,87.958,18.32891842]
[1770551401662,19.78930603,88.012,87.958,18.32891842]
[1770551402769,19.78930603,88.012,87.96,18.32891842]
[1770551403762,19.78930603,88.012,87.962,18.32891842]
[1770551406780,10.2336,88.023,87.966,19.08669241]
[1770551408472,10.2336,88.023,87.969,19.08669241]
[1770551408773,19.6396819,88.038,87.969,19.08669241]
[1770551409775,19.6396819,88.038,87.989,19.08669241]
[1770551409976,10.2307,88.048,87.989,19.08669241]
[1770551411277,10.2307,88.048,87.992,19.08669241]
[1770551411879,10.2307,88.048,87.995,19.08669241]
[1770551412574,10.2307,88.048,87.997,19.08669241]
[1770551412771,19.6396819,88.059,87.997,19.08669241]
[1770551413679,19.6396819,88.059,88.001,19.08669241]
[1770551415081,8.92157176,88.081,88.016,19.58714897]
[1770551415277,19.41732821,88.079,88.016,19.58714897]
[1770551415675,19.41732821,88.094,88.027,19.58714897]
[1770551416180,10.59651745,88.167,88.031,20.4651]
[1770551416387,76.89687761,88.226,88.086,159.0739]
[1770551416571,76.89687761,88.226,88.027,227.22]
[1770551416572,8.88255097,88.212,88.104,159.0421]
[1770551416778,14.07555548,88.27,88.14,10.2199]
[1770551416983,1.9735387,88.281,88.107,34.16]
[1770551417178,10.2096,88.23,88.14,10.2199]
[1770551417374,158.7335,88.276,88.099,159.0505]
[1770551417574,158.7493,88.267,88.081,159.0827]
[1770551417775,10.2092,88.233,88.122,10.222]
[1770551418189,10.2092,88.233,88.095,159.0582]
[1770551418388,10.2072,88.251,88.136,10.2204]
[1770551418573,75.94814992,88.25,88.136,10.2204]
[1770551419181,1.9735387,88.281,88.136,10.2204]
[1770551419182,75.94814992,88.233,88.136,10.2204]
[1770551419787,75.44359888,88.231,88.121,10.2221]
[1770551420287,75.44359888,88.209,88.121,10.2221]
[1770551420783,75.44359888,88.209,87.934,472.25069898]
[1770551420784,75.44606909,88.192,88.024,159.1859]
[1770551420979,75.44606909,88.192,88.032,159.1713]
[1770551421182,75.44606909,88.19,88.012,159.2084]
[1770551421384,75.63770678,88.158,88.002,159.2262]
[1770551421778,75.63770678,88.158,87.978,20.4775]
[1770551421779,75.63770678,88.158,88.042,10.2313]
[1770551421980,75.63770678,88.144,88.023,159.1887]
[1770551422184,75.63770678,88.21,88.087,10.2261]
[1770551422375,75.61458018,88.19,88.051,159.1385]
[1770551422579,75.61458018,88.19,87.998,159.234]
[1770551422580,75.61458018,88.19,88.049,159.1407]
[1770551422781,75.61458018,88.19,88.081,10.2267]
[1770551423182,75.61458018,88.178,88.081,10.2267]
[1770551423684,75.61458018,88.178,88.012,159.2089]
[1770551423886,75.61458018,88.178,87.968,20.4799]
[1770551423887,76.11463709,88.139,87.994,159.2417]
[1770551424085,76.11463709,88.139,87.974,159.2772]
[1770551424282,76.08720022,88.106,88.015,10.2345]
[1770551424580,76.08720022,88.106,87.985,159.2565]
[1770551424775,76.08720022,88.106,87.929,34.16]
[1770551424980,76.08720022,88.106,87.969,159.2859]
[1770551425488,75.55786088,88.104,87.99,159.2481]
[1770551425685,75.55786088,88.104,87.98,159.2654]
[1770551425882,75.55786088,88.1,87.999,10.2363]
[1770551427381,75.60859987,88.097,88.013,10.2346]
[1770551427676,75.60859987,88.097,87.986,159.2556]
[1770551428687,75.60859987,88.097,87.976,159.2728]
[1770551428879,75.60859987,88.097,87.934,444.71674433]
[1770551429085,75.60859987,88.097,87.974,159.2775]
[1770551429683,75.60859987,88.097,88.01,10.2351]
[1770551430889,75.60859987,88.097,87.994,10.2369]
[1770551431091,75.59653328,88.093,87.97,159.2844]
[1770551431387,75.59653328,88.093,88.005,10.2356]
[1770551432089,75.50721101,88.089,88.017,10.2342]
[1770551432483,75.50721101,88.089,87.963,159.2976]
[1770551432684,75.50721101,88.089,88.004,10.2357]
[1770551433585,75.50721101,88.089,88.016,10.2343]
[1770551434691,75.50721101,88.089,88.03,10.2326]
[1770551435287,75.50721101,88.089,88.016,10.2343]
[1770551435481,75.50721101,88.089,87.978,11.37]
[1770551436293,75.50721101,88.089,87.961,11.37]
[1770551436691,75.43988963,88.085,88.002,10.2359]
[1770551437795,75.34329117,88.082,88.002,10.2359]
[1770551438392,75.3237117,88.08,88.002,10.2359]
[1770551439695,75.3155892,88.076,88.002,10.2359]
[1770551440194,75.3155892,88.074,88.002,10.2359]
[1770551440795,75.29635721,88.072,88.002,10.2359]
[1770551443301,20.4396,88.142,88.002,10.2359]
[1770551443302,75.12017032,88.066,88.002,10.2359]
[1770551444498,75.10285919,88.064,87.99,10.2374]
[1770551444694,75.10285919,88.064,87.945,11.37]
[1770551444896,75.10285919,88.064,87.936,13.65358859]
[1770551444897,75.10285919,88.064,87.934,444.71674433]
[1770551445802,75.0841137,88.029,87.934,444.71674433]
[1770551446694,75.06721222,88.021,87.949,10.2421]
[1770551447293,75.06721222,88.021,87.905,0.50196276]
[1770551447294,74.95462351,88.009,87.939,10.2433]
[1770551447493,74.95462351,88.009,87.905,0.50196276]
[1770551447896,74.95462351,88.009,87.966,10.2402]
[1770551448798,74.95462351,88.009,87.975,10.239]
[1770551449701,74.95462351,88.009,87.961,10.2407]
[1770551450500,74.95462351,88.009,87.95,10.242]
[1770551451691,75.0518674,88.036,87.962,10.2406]
[1770551452804,75.0355284,88.073,87.933,13.70945423]
[1770551453103,158.9637,88.148,87.972,159.2813]
[1770551453304,10.2246,88.101,88.014,10.2346]
[1770551453497,158.885,88.192,88.012,159.2083]
[1770551453697,158.8978,88.185,88.012,159.2083]
[1770551454097,158.8814,88.194,88.054,10.2299]
[1770551454393,227.22,88.197,88.026,34.16]
[1770551454893,57.86836342,88.16,88.067,10.2283]
[1770551455403,58.01941489,88.152,88.079,10.227]
[1770551457202,58.01941489,88.152,88.062,10.229]
[1770551457401,58.01941489,88.152,88.03,159.1759]
[1770551457904,58.01941489,88.152,88.023,159.1885]
[1770551458705,57.86076625,88.149,88.065,10.2286]
[1770551458906,57.86076625,88.149,88.004,159.222]
[1770551459103,57.86076625,88.149,87.993,20.4741]
[1770551459104,57.86076625,88.149,88.006,159.2199]
[1770551460208,57.86076625,88.149,87.993,20.4741]
[1770551460209,57.8565046,88.135,88.039,10.2316]
[1770551460601,20.4248,88.206,87.993,20.4741]
[1770551460602,57.84042996,88.128,88.012,159.2081]
[1770551460804,57.84042996,88.128,88.028,159.1794]
[1770551461597,57.84042996,88.128,87.988,159.2518]
[1770551461800,57.76524165,88.145,88.087,10.2261]
[1770551462403,57.76524165,88.145,88.098,10.2247]
[1770551463605,8.11845489,88.223,88.009,159.2144]
[1770551463606,57.57114764,88.167,88.009,159.2144]
[1770551463914,57.57114764,88.167,88.008,159.2161]
[1770551463915,57.57114764,88.167,88.113,10.2231]
[1770551464112,57.57114764,88.167,88.047,20.4614]
[1770551464306,227.1,88.224,88.047,20.4614]
[1770551464307,57.55763789,88.165,88.054,159.1332]
[1770551464507,57.55763789,88.165,88.055,159.1308]
[1770551464704,57.55763789,88.165,87.976,159.2726]
[1770551464705,57.55763789,88.165,88.031,159.1741]
[1770551464912,57.55763789,88.146,88.071,10.228]
[1770551465311,57.55763789,88.146,88.039,11.37]
[1770551466410,57.5859526,88.132,88.022,11.37]
[1770551466806,57.5859526,88.13,88.055,10.2298]
[1770551468110,57.45852481,88.128,88.016,11.37]
[1770551468417,57.45852481,88.128,88.027,11.37]
[1770551468616,57.45852481,88.128,88.078,10.2271]
[1770551469613,57.45852481,88.128,88.089,10.2259]
[1770551470118,57.45852481,88.128,88.035,11.37]
[1770551470509,57.45852481,88.128,88.022,11.37]
[1770551471712,57.45852481,88.128,88.0,11.37]
[1770551472015,57.39579051,88.124,88.051,10.2303]
[1770551472607,57.38409041,88.122,88.051,10.2303]
[1770551473010,57.38409041,88.122,88.06,10.2291]
[1770551473814,57.33107761,88.119,88.06,10.2291]
[1770551476517,158.9083,88.179,88.06,10.2291]